bitfinex/quotes_ETHUSD_20251117
["timestamp","ask_amount","ask_price","bid_price","bid_amount"]
[1763362879860,0.4649,3199.5,3199.4,0.001]
[1763362880319,0.937,3199.5,3199.4,0.001]
[1763362881756,1.342504,3199.5,3199.4,0.001]
[1763362883639,1.59012848,3199.5,3199.4,0.001]
[1763362885664,2.08066442,3199.5,3199.4,0.001]
[1763362887574,1.60856442,3199.5,3199.4,0.001]
[1763362887778,2.07796442,3199.5,3199.4,0.001]
[1763362888142,1.58742848,3199.5,3199.4,0.001]
[1763362889871,1.11802848,3199.5,3199.4,0.001]
[1763362890074,0.870404,3199.5,3199.4,0.001]
[1763362890274,1.339804,3199.5,3199.4,0.001]
[1763362891277,0.994804,3199.5,3199.4,0.001]
[1763362892276,0.525404,3199.5,3199.4,0.001]
[1763362892576,0.994804,3199.5,3199.4,0.001]
[1763362896546,0.405504,3199.5,3199.4,0.001]
[1763362896947,0.883904,3199.5,3199.4,0.001]
[1763362897252,1.353304,3199.5,3199.4,0.001]
[1763362897744,0.883904,3199.5,3199.4,0.001]
[1763362897949,1.353304,3199.5,3199.4,0.001]
[1763362900361,0.883904,3199.5,3199.4,0.001]
[1763362900562,1.353304,3199.5,3199.4,0.001]
[1763362902688,0.883904,3199.5,3199.4,0.001]
[1763362903057,1.353304,3199.5,3199.4,0.001]
[1763362904487,1.355304,3199.5,3199.4,0.001]
[1763362905201,0.885904,3199.5,3199.4,0.001]
[1763362905558,1.355304,3199.5,3199.4,0.001]
[1763362908304,1.64840093,3199.5,3199.4,0.001]
[1763362908502,1.81324102,3199.5,3199.4,0.001]
[1763362912310,1.83334102,3199.5,3199.4,0.001]
[1763362912690,9.50788492,3199.5,3199.4,0.001]
[1763362912900,11.31800353,3199.5,3199.4,0.001]
[1763362918610,11.80861968,3199.5,3199.4,0.001]
[1763362920819,11.81079859,3199.5,3199.4,0.001]
[1763362921013,9.70445321,3199.5,3199.4,0.001]
[1763362921817,7.6546714,3199.5,3199.4,0.116]
[1763362921985,7.48983131,3199.5,3199.4,0.001]
[1763362922185,7.95513131,3199.5,3199.4,0.001]
[1763362922383,8.85013531,3199.5,3199.4,0.001]
[1763362923226,7.89533531,3199.5,3199.4,0.001]
[1763362923430,6.35609051,3199.5,3199.4,0.116]
[1763362923890,6.76159451,3199.5,3199.4,0.116]
[1763362924091,7.22689451,3199.5,3199.4,0.001]
[1763362925432,9.57282476,3199.5,3199.4,0.001]
[1763362926298,8.85013531,3199.5,3199.4,0.001]
[1763362928550,8.36063531,3199.5,3199.4,0.001]
[1763362928729,8.85013531,3199.5,3199.4,0.001]
[1763362932327,8.36063531,3199.5,3199.4,0.001]
[1763362932526,8.85013531,3199.5,3199.4,0.001]
[1763362933117,9.73514884,3199.5,3199.4,0.001]
[1763362934317,9.24453269,3199.5,3199.4,0.001]
[1763362934900,9.24466134,3199.5,3199.4,0.001]
[1763362935940,8.75516134,3199.5,3199.4,0.001]
[1763362936196,7.40484781,3199.5,3199.4,0.001]
[1763362937810,7.89542677,3199.5,3199.4,0.001]
[1763362939552,6.76168597,3199.5,3198.9,0.11171]
[1763362939851,0.89808296,3199.5,3199.4,0.1117]
[1763362940068,1.1913434,3199.5,3199.4,0.1117]
[1763362940447,1.1913434,3199.5,3198.7,0.001]
[1763362940646,0.405504,3199.3,3198.7,0.001]
[1763362940848,0.405504,3199.3,3199.2,0.1117]
[1763362941163,5.97588143,3199.3,3199.2,0.1117]
[1763362946374,7.08732747,3199.3,3198.7,0.001]
[1763362946574,6.44048143,3198.8,3198.7,0.001]
[1763362946977,6.73382246,3198.8,3198.7,0.001]
[1763362947278,6.44048143,3198.8,3198.7,0.001]
[1763362947464,7.19960311,3198.8,3198.7,0.001]
[1763362947662,7.17939174,3198.8,3198.7,0.001]
[1763362948085,7.93851699,3198.8,3198.7,0.001]
[1763362949575,7.17939174,3198.8,3198.7,0.001]
[1763362949776,6.71479174,3198.8,3198.7,0.1127]
[1763362950158,5.97588143,3198.8,3198.7,0.1127]
[1763362950749,6.44048143,3198.8,3198.7,0.001]
[1763362952180,5.97588143,3198.8,3198.7,0.001]
[1763362953283,0.64684604,3199.3,3198.7,0.1127]
[1763362953482,0.002,3199.5,3198.9,0.1117]
[1763362953483,5.57037743,3199.1,3198.9,0.1117]
[1763362953648,5.57037743,3199.4,3198.9,0.1117]
[1763362954042,5.57037743,3199.4,3199.3,0.1117]
[1763362954347,0.405504,3199.3,3198.9,0.1117]
[1763362954778,0.405504,3199.3,3199.2,0.1117]
[1763362955015,0.405504,3199.3,3198.7,0.001]
[1763362955335,5.57037743,3199.4,3198.7,0.001]
[1763362955336,0.405504,3198.9,3198.7,0.001]
[1763362955474,0.870104,3198.8,3198.7,0.001]
[1763362955668,1.51415214,3198.8,3198.7,0.001]
[1763362955992,1.97995214,3198.8,3198.7,0.001]
[1763362956594,2.27311034,3198.8,3198.7,0.001]
[1763362957925,8.04682857,3198.8,3198.7,0.1127]
[1763362958070,8.04682857,3198.8,3198.7,0.001]
[1763362958276,8.97722857,3198.8,3198.7,0.001]
[1763362958737,8.04682857,3198.8,3198.7,0.001]
[1763362960640,8.51142857,3198.8,3198.7,0.001]
[1763362961438,7.75367037,3198.8,3198.7,0.001]
[1763362961636,8.21827037,3198.8,3198.7,0.001]
[1763362961781,2.18329294,3198.8,3198.7,0.1127]
[1763362961988,7.10962223,3198.8,3198.7,0.1127]
[1763362962182,7.57422223,3198.8,3198.7,0.001]
[1763362962421,7.10962223,3198.8,3198.7,0.001]
[1763362962738,8.04002223,3198.8,3198.7,0.001]
[1763362962882,7.57422223,3198.8,3198.7,0.001]
[1763362963081,7.57422223,3198.8,3198.7,0.1127]
[1763362963082,5.97588143,3198.8,3198.7,0.1127]
[1763362963301,5.57037743,3199.1,3198.7,0.1127]
[1763362963628,0.405504,3199.0,3198.7,0.2244]
[1763362963792,0.405504,3199.0,3198.7,0.1127]
[1763362963993,0.405504,3199.0,3198.9,0.1117]
[1763362964393,5.57037743,3199.1,3198.9,0.1117]
[1763362964636,5.57037743,3199.1,3199.0,0.1117]
[1763362964808,5.56890925,3199.3,3199.0,0.1117]
[1763362965116,0.405504,3199.4,3199.0,0.1117]
[1763362965322,6.14695067,3199.5,3199.0,0.1117]
[1763362965704,0.405504,3199.4,3199.0,0.1117]
[1763362969394,0.405504,3199.4,3199.3,0.1117]
[1763362971727,0.405504,3199.4,3198.8,0.1117]
[1763362972096,0.407504,3199.4,3198.8,0.1117]
[1763362976214,5.67915067,3198.9,3198.7,0.001]
[1763362976607,5.67915067,3198.9,3198.8,0.1117]
[1763362976809,6.08465467,3199.2,3198.7,0.001]
[1763362977034,0.4626,3198.8,3198.7,0.001]
[1763362977736,0.868104,3198.8,3198.7,0.001]
[1763362977905,1.352604,3198.8,3198.7,0.001]
[1763362979338,0.868104,3198.8,3198.7,0.001]
[1763362979499,0.405504,3198.8,3198.7,0.1127]
[1763362980005,0.405504,3198.8,3198.7,0.001]
[1763362980402,0.405504,3198.8,3198.7,0.1127]
[1763362980607,0.405504,3198.8,3198.7,0.001]
[1763362980830,0.868104,3198.8,3198.7,0.001]
[1763362981031,1.47656947,3198.8,3198.7,0.001]
[1763362981260,0.405504,3198.8,3198.7,0.1127]
[1763362981416,0.868104,3198.8,3198.7,0.001]
[1763362982243,0.405504,3198.8,3198.7,0.1127]
[1763362983508,0.405504,3198.8,3198.7,0.001]
[1763362983907,1.06241947,3198.8,3198.7,0.1127]
[1763362984341,1.06241947,3198.8,3198.7,0.001]
[1763362984708,2.00951947,3198.8,3198.7,0.001]
[1763362986054,1.52501947,3198.8,3198.7,0.001]
[1763362986268,1.06241947,3198.8,3198.7,0.001]
[1763362986760,1.52501947,3198.8,3198.7,0.001]
[1763362986958,2.00951947,3198.8,3198.7,0.001]
[1763362987358,3.14326027,3198.8,3198.7,0.001]
[1763362987523,3.43620495,3198.8,3198.7,0.001]
[1763362988141,2.95170495,3198.8,3198.7,0.001]
[1763362988541,3.43620495,3198.8,3198.7,0.001]
[1763362988938,2.95170495,3198.8,3198.7,0.001]
[1763362990237,2.19616027,3198.8,3198.7,0.001]
[1763362990450,2.19616027,3198.8,3198.7,0.1127]
[1763362990655,1.06241947,3198.8,3198.7,0.1127]
[1763362995185,1.55306245,3198.8,3198.7,0.1127]
[1763362996083,2.01566245,3198.8,3198.7,0.001]
[1763362996582,1.55306245,3198.8,3198.7,0.001]
[1763362996888,2.01566245,3198.8,3198.7,0.001]
[1763362997676,1.55306245,3198.8,3198.7,0.001]
[1763362997984,0.89614698,3198.8,3198.7,0.001]
[1763362998389,1.34714698,3198.8,3198.7,0.001]
[1763362998554,1.84614698,3198.8,3198.7,0.001]
[1763362998755,0.89614698,3198.8,3198.7,0.001]
[1763362999055,1.34714698,3198.8,3198.7,0.001]
[1763362999891,2.59887675,3198.8,3198.7,0.001]
[1763363002173,2.89198685,3198.8,3198.7,0.001]
[1763363006574,2.42548685,3198.8,3198.7,0.001]
[1763363007713,1.94198685,3198.8,3198.7,0.001]
[1763363008822,0.002,3198.9,3198.7,0.2244]
[1763363008986,0.002,3198.9,3198.8,0.2234]
[1763363014329,0.002,3198.9,3198.8,0.1117]
[1763363014822,0.002,3198.9,3198.8,0.2234]
[1763363015734,0.002,3198.9,3198.8,0.1117]
[1763363016102,0.002,3198.9,3198.7,0.001]
[1763363016103,0.4855,3198.9,3198.7,0.001]
[1763363016527,0.4835,3198.8,3198.7,0.001]
[1763363017036,0.9407,3198.8,3198.7,0.001]
[1763363017741,0.4835,3198.8,3198.7,0.001]
[1763363018063,1.96266907,3198.8,3198.7,0.001]
[1763363018206,2.25543558,3198.8,3198.7,0.001]
[1763363024827,2.25543558,3198.8,3198.1,0.005]
[1763363024828,1.5392448,3198.7,3198.1,0.005]
[1763363025016,7.70189547,3198.2,3198.1,0.005]
[1763363025220,8.76485153,3198.2,3198.1,0.005]
[1763363025449,9.71282133,3198.2,3198.1,0.005]
[1763363026378,9.42005482,3198.2,3198.1,0.005]
[1763363026551,9.71253937,3198.2,3198.1,0.005]
[1763363026913,9.71803101,3198.2,3198.1,0.005]
[1763363027116,9.60781806,3198.2,3198.1,0.005]
[1763363027353,9.31533351,3198.2,3198.1,0.005]
[1763363031365,8.37463351,3198.2,3198.1,0.005]
[1763363031572,7.24089271,3198.2,3198.1,0.005]
[1763363032471,6.75012291,3198.2,3198.1,0.005]
[1763363033087,7.22292291,3198.2,3198.1,0.005]
[1763363033444,7.69262291,3198.2,3198.1,0.005]
[1763363034761,7.22292291,3198.2,3198.1,0.005]
[1763363036793,6.75012291,3198.2,3198.1,0.005]
[1763363037203,7.22292291,3198.2,3198.1,0.005]
[1763363037362,7.69262291,3198.2,3198.1,0.005]
[1763363037879,8.82636371,3198.2,3198.1,0.005]
[1763363040604,0.405504,3197.9,3197.1,0.005]
[1763363040787,7.78557416,3197.7,3197.1,0.005]
[1763363041082,9.03383158,3197.7,3197.1,0.005]
[1763363041414,9.15920711,3197.7,3197.1,0.005]
[1763363042351,9.15920711,3197.7,3197.4,0.001]
[1763363042557,9.65005052,3197.7,3197.4,0.001]
[1763363044316,9.94248757,3197.7,3197.4,0.001]
[1763363044959,9.45164416,3197.7,3197.4,0.001]
[1763363049610,10.12619809,3197.7,3197.4,0.001]
[1763363052712,10.12619809,3197.7,3196.1,0.005]
[1763363052914,6.45273336,3196.2,3196.1,0.005]
[1763363053225,5.97993336,3196.2,3196.1,0.005]
[1763363053517,6.57816354,3196.2,3196.1,0.005]
[1763363053824,6.10536354,3196.2,3196.1,0.005]
[1763363054622,6.57816354,3196.2,3196.1,0.005]
[1763363054795,7.23597989,3196.2,3196.1,0.005]
[1763363054994,7.70567989,3196.2,3196.1,0.005]
[1763363055199,8.83942069,3196.2,3196.1,0.005]
[1763363055699,0.405504,3196.1,3195.6,0.001]
[1763363055901,4.22821908,3196.1,3195.6,0.001]
[1763363056231,5.36195988,3196.1,3195.6,0.001]
[1763363056390,7.73597416,3195.7,3195.6,0.001]
[1763363056720,8.02808377,3195.7,3195.6,0.001]
[1763363057025,9.50322001,3195.7,3195.6,0.001]
[1763363057208,10.45354201,3195.7,3195.6,0.001]
[1763363057718,0.405504,3195.6,3195.1,0.005]
[1763363057892,7.57127416,3195.4,3195.1,0.005]
[1763363058285,7.11367416,3195.4,3195.3,0.1137]
[1763363058489,5.97993336,3195.4,3195.3,0.1137]
[1763363059145,6.43753336,3195.4,3195.3,0.001]
[1763363059339,6.63623373,3195.4,3195.3,0.001]
[1763363059503,6.63623373,3195.4,3195.3,0.1137]
[1763363060402,5.97993336,3195.4,3195.3,0.1137]
[1763363060601,5.97993336,3195.4,3195.3,0.2264]
[1763363061519,5.97993336,3195.4,3195.3,0.1137]
[1763363061829,5.97993336,3195.4,3195.3,0.2264]
[1763363062228,0.89672424,3195.4,3195.3,0.2264]
[1763363063027,0.405504,3195.4,3195.3,0.1137]
[1763363063207,0.631904,3195.4,3195.3,0.1137]
[1763363063409,0.631904,3195.4,3195.3,0.2264]
[1763363063604,0.631904,3195.4,3195.3,0.1137]
[1763363064046,0.631904,3195.4,3195.3,0.2264]
[1763363064557,0.2264,3195.4,3195.3,0.2264]
[1763363064730,5.57442936,3195.9,3195.3,0.2264]
[1763363064932,5.57442936,3195.9,3195.8,0.1127]
[1763363065143,5.97993336,3195.9,3195.8,0.1127]
[1763363065526,6.10536039,3195.9,3195.8,0.1127]
[1763363068052,6.10536039,3195.9,3195.4,0.1127]
[1763363068246,6.10536039,3195.9,3195.8,0.1127]
[1763363068437,5.97993336,3195.9,3195.8,0.1127]
[1763363068625,6.10536079,3195.9,3195.8,0.1127]
[1763363069427,0.405504,3195.8,3195.3,0.001]
[1763363070151,0.12543097,3195.7,3195.3,0.001]
[1763363070449,5.97993336,3195.6,3195.3,0.1137]
[1763363070953,5.97993336,3195.6,3195.5,0.1127]
[1763363071126,6.10537101,3195.6,3195.5,0.1127]
[1763363072063,0.12543765,3195.6,3195.5,0.1127]
[1763363072269,0.405504,3195.8,3195.5,0.2254]
[1763363072432,0.53093221,3195.8,3195.5,0.1127]
[1763363072766,5.57442936,3195.6,3195.3,0.001]
[1763363073242,5.57442936,3195.6,3195.5,0.1127]
[1763363076441,0.405504,3195.5,3195.3,0.001]
[1763363076637,0.891604,3195.4,3195.3,0.001]
[1763363077140,1.68028264,3195.4,3195.3,0.001]
[1763363077366,8.09597416,3195.4,3195.3,0.001]
[1763363077586,8.38845442,3195.4,3195.3,0.001]
[1763363077752,9.29984528,3195.4,3195.3,0.001]
[1763363080590,9.42531048,3195.4,3195.3,0.001]
[1763363081281,8.92911048,3195.4,3195.3,0.001]
[1763363081479,9.42531048,3195.4,3195.3,0.001]
[1763363084171,8.92911048,3195.4,3195.3,0.001]
[1763363084771,7.01678942,3195.4,3195.3,0.001]
[1763363084971,7.99908942,3195.4,3195.3,0.001]
[1763363085188,9.42598818,3195.4,3195.3,0.001]
[1763363086922,9.54589006,3195.4,3195.3,0.001]
[1763363089206,10.03716528,3195.4,3195.3,0.001]
[1763363089928,9.54096528,3195.4,3195.3,0.001]
[1763363090292,10.03716528,3195.4,3195.3,0.001]
[1763363091199,8.64936128,3195.4,3195.3,0.001]
[1763363091417,7.73797042,3195.4,3195.3,0.001]
[1763363091794,8.14347442,3195.4,3195.3,0.001]
[1763363092024,8.63387442,3195.4,3195.3,0.001]
[1763363092225,9.10917442,3195.4,3195.3,0.001]
[1763363092925,8.14347442,3195.4,3195.3,0.001]
[1763363093226,9.0178212,3195.4,3195.3,0.001]
[1763363093608,9.01775927,3195.4,3195.3,0.001]
[1763363095129,9.50815927,3195.4,3195.3,0.001]
[1763363097437,9.38269407,3195.4,3195.3,0.001]
[1763363097733,9.85799407,3195.4,3195.3,0.001]
[1763363097902,9.98345376,3195.4,3195.3,0.001]
[1763363098323,9.98345376,3195.4,3195.1,0.005]
[1763363098324,2.5049448,3195.3,3195.1,0.005]
[1763363098632,2.25491477,3195.2,3195.1,0.005]
[1763363098938,3.86395557,3195.2,3195.1,0.005]
[1763363100833,3.38865557,3195.2,3195.1,0.005]
[1763363101230,3.86395557,3195.2,3195.1,0.005]
[1763363101849,4.08935557,3195.2,3195.1,0.005]
[1763363104274,4.76555749,3195.2,3195.1,0.005]
[1763363105471,4.29025749,3195.2,3195.1,0.005]
[1763363105673,4.76555749,3195.2,3195.1,0.005]
[1763363109640,4.29025749,3195.2,3195.1,0.005]
[1763363109841,4.76555749,3195.2,3195.1,0.005]
[1763363114142,3.79985749,3195.2,3195.1,0.005]
[1763363114539,4.29025749,3195.2,3195.1,0.005]
[1763363114883,4.76555749,3195.2,3195.1,0.005]
[1763363116176,9.49418873,3195.2,3195.1,0.005]
[1763363116474,1.7646448,3195.2,3195.1,0.1177]
[1763363116676,2.05820425,3195.2,3195.1,0.1177]
[1763363118459,2.05820425,3195.2,3195.1,0.005]
[1763363120178,2.05820425,3195.2,3195.1,0.1177]
[1763363122556,0.29355945,3195.2,3195.1,0.2304]
[1763363122882,6.48,3195.4,3195.1,0.2304]
[1763363123183,8.0192448,3195.4,3195.3,0.1127]
[1763363123483,1.1337408,3195.4,3195.3,0.1127]
[1763363123782,1.1337408,3195.4,3195.3,0.2254]
[1763363123979,0.002,3195.6,3195.3,0.2254]
[1763363124210,0.002,3195.6,3195.5,0.1127]
[1763363124591,0.002,3195.6,3195.5,0.2254]
[1763363126100,0.49320644,3195.6,3195.5,0.2254]
[1763363126619,0.49320644,3195.6,3195.5,0.1127]
[1763363127009,1.62694724,3195.6,3195.5,0.1127]
[1763363127805,2.03245124,3195.6,3195.5,0.1127]
[1763363128607,0.405504,3195.5,3195.1,0.005]
[1763363128918,0.405504,3195.5,3195.1,0.1177]
[1763363129113,0.405504,3195.5,3195.4,0.1127]
[1763363129496,0.405504,3195.5,3195.4,0.2254]
[1763363129692,0.49320644,3195.6,3195.4,0.2254]
[1763363129918,0.49320644,3195.6,3195.4,0.1127]
[1763363130218,0.49320644,3195.6,3195.5,0.1127]
[1763363135667,0.96270644,3195.6,3195.1,0.005]
[1763363135851,0.405504,3195.5,3195.1,0.005]
[1763363136219,0.405504,3195.5,3195.4,0.1127]
[1763363137048,0.49320644,3195.6,3195.4,0.1127]
[1763363137249,0.49320644,3195.6,3195.1,0.1177]
[1763363137812,0.49320644,3195.6,3195.5,0.1127]
[1763363138017,0.49320644,3195.6,3195.5,0.2254]
[1763363142466,0.49320644,3195.6,3195.5,0.1127]
[1763363144466,0.49320644,3195.6,3195.1,0.005]
[1763363144668,1.62694724,3195.6,3195.1,0.005]
[1763363144853,1.62694724,3195.6,3195.1,0.1177]
[1763363145296,0.49320644,3195.6,3195.5,0.1127]
[1763363146092,0.49320644,3195.6,3195.5,0.1137]
[1763363149617,0.002,3195.6,3195.5,0.2264]
[1763363160315,0.002,3195.6,3195.5,0.1137]
[1763363161885,6.07688171,3195.6,3195.5,0.001]
[1763363162316,0.002,3195.6,3195.5,0.1137]
[1763363163102,0.49316444,3195.6,3195.5,0.001]
[1763363164025,0.98746444,3195.6,3195.5,0.001]
[1763363165638,1.46726444,3195.6,3195.5,0.001]
[1763363166107,0.9761,3195.6,3195.5,0.001]
[1763363166509,0.4963,3195.6,3195.5,0.001]
[1763363166913,0.9761,3195.6,3195.5,0.001]
[1763363167518,0.4963,3195.6,3195.5,0.001]
[1763363167709,0.002,3195.6,3195.5,0.001]
[1763363167909,0.4963,3195.6,3195.5,0.001]
[1763363168523,0.9761,3195.6,3195.5,0.001]
[1763363168733,4.11827278,3195.6,3195.5,0.001]
[1763363171400,0.4963,3195.6,3195.5,0.001]
[1763363171719,3.14417278,3195.6,3195.5,0.001]
[1763363172945,0.002,3195.6,3195.5,0.1137]
[1763363174544,0.9761,3195.6,3195.5,0.001]
[1763363174837,4.43269006,3195.6,3195.5,0.001]
[1763363175341,0.002,3195.6,3195.5,0.001]
[1763363175648,0.002,3195.6,3195.5,0.1137]
[1763363176434,0.002,3195.6,3195.5,0.001]
[1763363177552,0.002,3195.6,3195.5,0.1137]
[1763363179936,0.4931533,3195.6,3195.5,0.1137]
[1763363180857,0.4931533,3195.6,3195.5,0.2264]
[1763363181574,0.4931533,3195.6,3195.5,0.1137]
[1763363183559,0.4931533,3195.6,3195.5,0.2264]
[1763363184039,0.002,3195.6,3195.5,0.2264]
[1763363186237,0.002,3195.6,3195.5,3.35580071]
[1763363186642,0.002,3196.0,3195.5,10.761115]
[1763363186845,0.002,3196.0,3195.9,6.38388182]
[1763363187044,0.002,3196.0,3195.9,9.5260546]
[1763363187239,0.002,3196.0,3195.9,6.49658182]
[1763363188069,0.002,3196.0,3195.9,6.42096182]
[1763363188268,0.002,3196.0,3195.9,7.55470262]
[1763363189667,0.002,3196.0,3195.9,10.6968754]
[1763363190236,0.002,3196.3,3195.9,13.82588444]
[1763363190437,0.002,3196.3,3196.2,3.17927278]
[1763363190948,0.002,3196.3,3196.2,3.21637278]
[1763363192260,0.002,3196.3,3196.2,6.34508812]
[1763363192665,0.002,3196.3,3196.2,6.978846]
[1763363194562,0.002,3196.3,3196.2,3.85013066]
[1763363194765,0.002,3196.3,3196.2,6.978846]
[1763363195492,1.1337408,3197.5,3196.2,13.24973412]
[1763363195650,1.1337408,3197.5,3197.0,0.0371]
[1763363195857,1.6169408,3197.5,3197.0,0.0371]
[1763363196043,0.4832,3197.4,3196.6,3.17927278]
[1763363196977,0.4832,3197.4,3196.6,3.14217278]
[1763363197487,0.49095186,3197.3,3196.6,3.17927278]
[1763363197772,0.4832,3197.4,3196.7,0.0371]
[1763363198151,0.4832,3197.4,3196.4,3.14217278]
[1763363198473,0.4796,3196.5,3196.2,0.63375788]
[1763363198674,0.4796,3196.5,3195.9,7.4049136]
[1763363199061,0.1878,3196.7,3196.1,6.27098007]
[1763363199466,0.4832,3196.8,3196.1,6.27098007]
[1763363199666,0.405504,3197.4,3196.3,3.14217278]
[1763363199994,0.4832,3197.1,3196.3,3.14217278]
[1763363200562,0.9741712,3197.1,3196.3,3.14217278]
[1763363201268,0.4832,3197.0,3196.2,0.61489058]
[1763363201462,0.4832,3197.0,3196.3,3.14217278]
[1763363201676,0.4832,3197.0,3196.5,3.14217278]
[1763363202001,0.4909712,3197.1,3196.5,3.14217278]
[1763363202561,0.4832,3197.4,3196.7,3.14217278]
[1763363202793,0.4832,3197.4,3196.5,3.14217278]
[1763363202995,0.49095527,3197.2,3196.5,3.14217278]
[1763363203184,0.4832,3197.4,3196.5,3.14217278]
[1763363204301,0.4832,3197.4,3196.4,0.0371]
[1763363204496,0.4832,3197.4,3196.3,6.27078703]
[1763363205718,3.62537278,3197.4,3196.2,0.64002223]
[1763363205875,0.4852,3197.5,3196.8,3.14217278]
[1763363206287,0.49092124,3197.4,3196.8,3.14217278]
[1763363206873,0.4832,3197.3,3196.8,3.14217278]
[1763363207089,0.4852,3197.5,3197.0,3.14217278]
[1763363207604,0.4852,3197.5,3196.8,3.14217278]
[1763363207918,0.4796,3197.1,3196.8,3.14217278]
[1763363208817,0.002,3197.5,3197.0,0.0371]
[1763363209025,0.002,3197.5,3196.8,3.13779012]
[1763363209915,0.002,3197.5,3197.4,0.0371]
[1763363210519,0.002,3197.5,3197.4,3.17489012]
[1763363211228,0.002,3197.5,3197.4,0.0371]
[1763363212238,0.4531,3197.5,3197.1,3.13779012]
[1763363212522,0.4511,3197.2,3196.5,3.13779012]
[1763363212698,0.9221,3197.2,3196.6,1.1337408]
[1763363212896,0.9221,3197.2,3196.5,3.13779012]
[1763363213197,0.9221,3197.2,3196.5,6.26620621]
[1763363213410,0.9221,3197.2,3196.5,3.13779012]
[1763363213718,0.9221,3197.2,3196.5,3.12841477]
[1763363213902,0.471,3197.1,3196.5,1.1337408]
[1763363214088,0.4511,3197.2,3196.5,1.1337408]
[1763363214508,0.4511,3197.2,3196.3,4.27153092]
[1763363214509,0.471,3197.1,3196.3,4.27153092]
[1763363215328,0.471,3197.1,3196.5,1.1337408]
[1763363215538,0.471,3197.1,3196.6,3.13779012]
[1763363217311,0.471,3197.1,3196.5,1.1337408]
[1763363217935,0.471,3197.1,3196.4,1.1337408]
[1763363220051,0.002,3197.5,3196.6,3.13779012]
[1763363220254,0.471,3197.3,3196.6,3.13779012]
[1763363220549,0.002,3197.5,3196.5,3.16552171]
[1763363220550,0.002,3197.5,3197.2,0.0371]
[1763363221140,0.002,3197.5,3197.4,0.0371]
[1763363224126,0.007,3197.9,3197.4,10.60081316]
[1763363224348,0.007,3197.9,3197.8,3.17489012]
[1763363225221,0.002,3198.2,3197.8,3.87390104]
[1763363225424,0.002,3198.2,3198.1,0.0371]
[1763363225636,0.4531,3198.2,3197.8,0.61191092]
[1763363225850,0.4531,3198.2,3197.7,3.13779012]
[1763363226051,0.4531,3198.2,3197.7,6.26502735]
[1763363226476,0.002,3198.2,3198.1,0.0371]
[1763363226877,0.002,3198.2,3198.1,3.17489012]
[1763363227579,0.002,3198.2,3198.1,3.21199012]
[1763363228140,0.002,3198.2,3198.1,3.17489012]
[1763363228771,0.002,3198.3,3198.1,6.38884669]
[1763363228969,0.002,3198.3,3198.2,0.0742]
[1763363229170,0.002,3198.6,3198.5,3.13779012]
[1763363229375,0.002,3198.6,3198.5,3.17489012]
[1763363230079,0.002,3198.6,3198.1,6.30371314]
[1763363230080,0.4531,3198.6,3198.1,6.31464669]
[1763363230283,0.002,3198.6,3198.1,6.35174669]
[1763363230481,0.002,3198.6,3198.2,3.13779012]
[1763363230652,0.473,3198.6,3198.2,3.13779012]
[1763363230985,0.002,3198.6,3198.2,3.13779012]
[1763363231787,0.471,3198.5,3198.2,3.13779012]
[1763363232579,0.002,3198.6,3198.4,3.17489012]
[1763363232760,0.002,3198.6,3198.5,0.0371]
[1763363233156,0.002,3198.7,3198.5,1.2079408]
[1763363233382,0.002,3198.7,3198.6,3.17489012]
[1763363233543,0.002,3198.7,3198.6,0.60201643]
[1763363234244,0.002,3198.7,3198.6,6.86617433]
[1763363234450,0.007,3198.9,3198.6,6.3383579]
[1763363234683,0.007,3198.9,3198.8,3.17489012]
[1763363235645,0.007,3198.9,3198.8,6.30106243]
[1763363235959,0.002,3199.0,3198.9,1.1837408]
[1763363236164,0.002,3199.5,3198.9,1.2579408]
[1763363236369,0.002,3199.5,3199.4,3.13779012]
[1763363237084,0.002,3199.5,3199.4,3.17489012]
[1763363238086,0.002,3199.8,3199.4,6.30047616]
[1763363238259,0.002,3199.8,3199.5,0.0371]
[1763363238466,0.002,3200.0,3199.7,0.05]
[1763363238668,0.002,3200.0,3199.9,3.17489012]
[1763363239687,0.6557,3200.6,3199.9,3.17489012]
[1763363239860,0.6557,3200.6,3200.0,0.0371]
[1763363240756,0.6557,3200.6,3200.0,0.67229431]
[1763363241794,0.6557,3200.6,3200.0,3.79729431]
[1763363242308,0.6557,3200.6,3200.0,0.67229431]
[1763363242604,0.6557,3200.6,3200.0,3.79729431]
[1763363242954,0.4613,3200.4,3200.0,0.67229431]
[1763363244996,0.4613,3200.4,3200.0,0.63519431]
[1763363245192,0.4613,3200.4,3199.9,6.26287145]
[1763363245489,0.4613,3200.4,3199.9,3.13779012]
[1763363246190,0.4893,3200.0,3199.7,0.05]
[1763363246354,0.4633,3200.1,3199.8,3.13779012]
[1763363246952,0.002,3200.1,3200.0,0.4892]
[1763363247171,0.002,3200.1,3200.0,3.62699012]
[1763363247756,0.002,3200.1,3200.0,4.23704184]
[1763363248288,0.005,3200.9,3200.0,8.98448264]
[1763363248595,0.4613,3200.8,3200.3,3.13779012]
[1763363249169,0.005,3200.9,3200.3,3.13779012]
[1763363249373,0.4663,3200.9,3200.3,3.13779012]
[1763363250281,0.4683,3200.9,3200.3,3.13779012]
[1763363251382,0.4683,3200.9,3200.3,1.1337408]
[1763363251898,0.007,3200.9,3200.4,0.4887]
[1763363252193,0.007,3200.9,3200.2,0.4613]
[1763363252365,0.4683,3200.9,3200.2,0.4613]
[1763363253068,0.4683,3200.9,3200.1,1.8355408]